fUSD/lending_fUSD_20241224
["ID","MTS","AMOUNT","RATE_DAILY","PERIOD"]
[346500838,1735011098120,-683.71,0.00013698,2]
[346500839,1735011098130,-500.0,0.00013698,2]
[346500840,1735011098140,-500.0,0.00013698,2]
[346500841,1735011098149,-500.0,0.00013698,2]
[346500842,1735011098159,-500.0,0.00013698,2]
[346500843,1735011098169,-500.0,0.00013698,2]
[346500844,1735011098179,-502.00375552,0.00013698,2]
[346500845,1735011098188,-500.0,0.00013698,2]
[346500846,1735011098198,-18977.0,0.00013698,2]
[346500847,1735011098207,-760.03,0.00013698,2]
[346500848,1735011098217,-501.85787293,0.00013698,2]
[346500849,1735011098227,-500.0,0.00013698,2]
[346500850,1735011098236,-1641.11,0.00013698,2]
[346500851,1735011098246,-500.0,0.00013698,2]
[346500852,1735011098255,-500.0,0.00013698,2]
[346500853,1735011098265,-500.0,0.00013698,2]
[346500854,1735011098274,-500.0,0.00013698,2]
[346500855,1735011098284,-500.0,0.00013698,2]
[346500856,1735011098294,-500.0,0.00013698,2]
[346500857,1735011098306,-1764.49,0.00013698,2]
[346500858,1735011098316,-501.55106925,0.00013698,2]
[346500859,1735011098326,-170.73,0.000137,2]
[346500860,1735011098337,-170.73,0.000137,2]
[346500861,1735011098347,-170.73,0.000137,2]
[346500862,1735011098356,-170.73,0.000137,2]
[346500863,1735011098366,-170.73,0.000137,2]
[346500864,1735011098375,-170.73,0.000137,2]
[346500865,1735011098385,-200.0,0.000138,2]
[346500866,1735011098395,-6631.00342435,0.00013821,2]
[346500867,1735011098405,-2048.58,0.00013972,2]
[346500868,1735011098415,-1779.8,0.00013972,2]
[346500869,1735011098424,-1311.88,0.00013972,2]
[346500870,1735011098434,-3042.34,0.00013972,2]
[346500871,1735011098443,-500.0,0.00013972,2]
[346500872,1735011098453,-4145.26,0.00013972,2]
[346500873,1735011098462,-2510.92,0.00013972,2]
[346500874,1735011098472,-2165.74,0.00013972,2]
[346500875,1735011098481,-4218.72,0.00013972,2]
[346500876,1735011098491,-2191.99,0.00013972,2]
[346500877,1735011098500,-2002.38,0.00013972,2]
[346500878,1735011098511,-500.0,0.00013972,2]
[346500879,1735011098521,-500.0,0.00013972,2]
[346500880,1735011098530,-683.71,0.00013972,2]
[346500881,1735011098540,-500.0,0.00013972,2]
[346500882,1735011098550,-500.0,0.00013972,2]
[346500883,1735011098560,-500.0,0.00013972,2]
[346500884,1735011098570,-500.0,0.00013972,2]
[346500885,1735011098584,-500.0,0.00013972,2]
[346500886,1735011098593,-500.0,0.00013972,2]
[346500887,1735011098603,-18977.0,0.00013972,2]
[346500888,1735011098612,-760.03,0.00013972,2]
[346500889,1735011098622,-500.0,0.00013972,2]
[346500890,1735011098631,-1641.11,0.00013972,2]
[346500891,1735011098641,-500.0,0.00013972,2]
[346500892,1735011098652,-500.0,0.00013972,2]
[346500893,1735011098662,-500.0,0.00013972,2]
[346500894,1735011098671,-1764.49,0.00013972,2]
[346500895,1735011098681,-4766.712,0.00014106,2]
[346500896,1735011098691,-1170.0,0.00014106,2]
[346500897,1735011098700,-1101.0,0.00014106,2]
[346500898,1735011098710,-3888.0,0.00014106,2]
[346500899,1735011098719,-150.0,0.00014106,2]
[346500900,1735011098729,-1265.0,0.00014106,2]
[346500901,1735011098738,-2011.0,0.00014106,2]
[346500902,1735011098748,-6631.00342435,0.00014141,2]
[346500903,1735011098758,-250.0,0.00014146,2]
[346500904,1735011098767,-460.18,0.00014199,2]
[346500905,1735011098776,-295.12,0.00014199,2]
[346500906,1735011098786,-3125.93,0.00014204,2]
[346500907,1735011098795,-2048.58,0.00014246,2]
[346500908,1735011098807,-1779.8,0.00014246,2]
[346500909,1735011098817,-1311.88,0.00014246,2]
[346500910,1735011098826,-3042.34,0.00014246,2]
[346500911,1735011098836,-500.0,0.00014246,2]
[346500912,1735011098846,-4145.26,0.00014246,2]
[346500913,1735011098855,-2510.92,0.00014246,2]
[346500914,1735011098865,-2165.74,0.00014246,2]
[346500915,1735011098874,-4218.72,0.00014246,2]
[346500916,1735011098884,-2191.99,0.00014246,2]
[346500917,1735011098894,-2002.38,0.00014246,2]
[346500918,1735011098904,-500.0,0.00014246,2]
[346500919,1735011098914,-500.0,0.00014246,2]
[346500920,1735011098924,-683.71,0.00014246,2]
[346500921,1735011098933,-500.0,0.00014246,2]
[346500922,1735011098942,-500.0,0.00014246,2]
[346500923,1735011098952,-500.0,0.00014246,2]
[346500924,1735011098962,-500.0,0.00014246,2]
[346500925,1735011098971,-500.0,0.00014246,2]
[346500926,1735011098981,-500.0,0.00014246,2]
[346500927,1735011098990,-18977.0,0.00014246,2]
[346500928,1735011099000,-760.03,0.00014246,2]
[346500929,1735011099009,-500.0,0.00014246,2]
[346500930,1735011099019,-1641.11,0.00014246,2]
[346500931,1735011099028,-500.0,0.00014246,2]
[346500932,1735011099038,-500.0,0.00014246,2]
[346500933,1735011099047,-500.0,0.00014246,2]
[346500934,1735011099059,-1764.49,0.00014246,2]
[346500935,1735011099068,-6631.00342435,0.00014461,2]
[346500936,1735011099079,-2048.58,0.0001452,2]
[346500937,1735011099256,-1779.8,0.0001452,2]
[346500938,1735011099266,-1311.88,0.0001452,2]
[346500939,1735011099276,-3042.34,0.0001452,2]
[346500940,1735011099286,-500.0,0.0001452,2]
[346500941,1735011099296,-4145.26,0.0001452,2]
[346500942,1735011099307,-2510.92,0.0001452,2]
[346500943,1735011099317,-2165.74,0.0001452,2]
[346500944,1735011099327,-4218.72,0.0001452,2]
[346500945,1735011099337,-2191.99,0.0001452,2]
[346500946,1735011099347,-2002.38,0.0001452,2]
[346500947,1735011099357,-500.0,0.0001452,2]
[346500948,1735011099366,-500.0,0.0001452,2]
[346500949,1735011099375,-683.71,0.0001452,2]
[346500950,1735011099384,-505.83048302,0.0001452,2]
[346500951,1735011099395,-500.0,0.0001452,2]
[346500952,1735011099404,-500.0,0.0001452,2]
[346500953,1735011099414,-500.0,0.0001452,2]
[346500954,1735011099423,-500.0,0.0001452,2]
[346500955,1735011099432,-18977.0,0.0001452,2]
[346500956,1735011099442,-760.03,0.0001452,2]
[346500957,1735011099451,-500.0,0.0001452,2]
[346500958,1735011099460,-1641.11,0.0001452,2]
[346500959,1735011099469,-500.0,0.0001452,2]
[346500960,1735011099479,-500.0,0.0001452,2]
[346500961,1735011099488,-500.0,0.0001452,2]
[346500962,1735011099497,-1764.49,0.0001452,2]
[346500963,1735011099507,-633.291,0.0001457,2]
[346500964,1735011099517,-6631.00342435,0.00014782,2]
[346500965,1735011099526,-2048.58,0.00014794,2]
[346500966,1735011099536,-1779.8,0.00014794,2]
[346500967,1735011099545,-1311.88,0.00014794,2]
[346500968,1735011099557,-3042.34,0.00014794,2]
[346500969,1735011099567,-500.0,0.00014794,2]
[346500970,1735011099579,-4145.26,0.00014794,2]
[346500971,1735011099589,-2510.92,0.00014794,2]
[346500972,1735011099598,-2165.74,0.00014794,2]
[346500973,1735011099608,-4218.72,0.00014794,2]
[346500974,1735011099619,-2191.99,0.00014794,2]
[346500975,1735011099628,-2002.38,0.00014794,2]
[346500976,1735011099637,-500.0,0.00014794,2]
[346500977,1735011099646,-500.0,0.00014794,2]
[346500978,1735011099658,-683.71,0.00014794,2]
[346500979,1735011099668,-500.0,0.00014794,2]
[346500980,1735011099677,-500.0,0.00014794,2]
[346500981,1735011099686,-500.0,0.00014794,2]
[346500982,1735011099695,-500.0,0.00014794,2]
[346500983,1735011099704,-18977.0,0.00014794,2]
[346500984,1735011099714,-760.03,0.00014794,2]
[346500985,1735011099723,-500.0,0.00014794,2]
[346500986,1735011099732,-1641.11,0.00014794,2]
[346500987,1735011099741,-500.0,0.00014794,2]
[346500988,1735011099752,-500.0,0.00014794,2]
[346500989,1735011099761,-500.0,0.00014794,2]
[346500990,1735011099769,-1764.49,0.00014794,2]
[346500991,1735011099778,-200.0,0.000149,5]
[346500992,1735011099787,-150.0,0.00014975,2]
[346500993,1735011099796,-150.0,0.00014985,2]
[346500994,1735011099806,-2174.94,0.00015057,2]
[346500995,1735011099815,-166.228,0.00015057,2]
[346500996,1735011099826,-618.66,0.00015065,2]
[346500997,1735011099834,-4498.81,0.00015065,2]
[346500998,1735011099843,-845.95,0.00015065,2]
[346500999,1735011099852,-10724.41,0.00015065,2]
[346501000,1735011099861,-3409.97,0.00015065,2]
[346501001,1735011099870,-7767.4,0.00015065,2]
[346501002,1735011099879,-2500.86,0.00015065,2]
[346501003,1735011099888,-6082.71,0.00015065,2]
[346501004,1735011099897,-599.65,0.00015065,2]
[346501005,1735011099907,-4559.7573,0.00015066,2]
[346501006,1735011099916,-500.0,0.00015066,2]
[346501007,1735011099925,-500.0,0.00015066,2]
[346501008,1735011099934,-500.0,0.00015066,2]
[346501009,1735011099943,-500.0,0.00015066,2]
[346501010,1735011099953,-500.0,0.00015066,2]
[346501011,1735011099962,-500.0,0.00015066,2]
[346501012,1735011099970,-500.0,0.00015066,2]
[346501013,1735011099979,-511.03,0.00015066,2]
[346501014,1735011099988,-500.0,0.00015066,2]
[346501015,1735011099997,-500.0,0.00015066,2]
[346501016,1735011100005,-500.0,0.00015066,2]
[346501017,1735011100015,-500.0,0.00015066,2]
[346501018,1735011100024,-500.0,0.00015066,2]
[346501019,1735011100032,-500.0,0.00015066,2]
[346501020,1735011100041,-500.0,0.00015066,2]
[346501021,1735011100053,-500.0,0.00015066,2]
[346501022,1735011100062,-500.0,0.00015066,2]
[346501023,1735011100072,-500.0,0.00015066,2]
[346501024,1735011100081,-500.0,0.00015066,2]
[346501025,1735011100090,-500.0,0.00015066,2]
[346501026,1735011100099,-500.0,0.00015066,2]
[346501027,1735011100108,-500.0,0.00015066,2]
[346501028,1735011100118,-500.0,0.00015066,2]
[346501029,1735011100127,-500.0,0.00015066,2]
[346501030,1735011100137,-500.0,0.00015066,2]
[346501031,1735011100146,-500.0,0.00015066,2]
[346501032,1735011100155,-500.0,0.00015066,2]
[346501033,1735011100165,-500.0,0.00015066,2]
[346501034,1735011100174,-500.0,0.00015066,2]
[346501035,1735011100183,-500.0,0.00015066,2]
[346501036,1735011100192,-511.22,0.00015066,2]
[346501037,1735011100201,-500.0,0.00015066,2]
[346501038,1735011100211,-500.0,0.00015066,2]
[346501039,1735011100220,-963.35,0.00015066,2]
[346501040,1735011100229,-500.0,0.00015066,2]
[346501041,1735011100239,-817.97,0.00015066,2]
[346501042,1735011100248,-513.32540852,0.00015066,2]
[346501043,1735011100257,-1137.67,0.00015066,2]
[346501044,1735011100266,-916.16,0.00015066,2]
[346501045,1735011100276,-500.0,0.00015066,2]
[346501046,1735011100285,-876.13,0.00015066,2]
[346501047,1735011100294,-500.0,0.00015066,2]
[346501048,1735011100305,-850.87,0.00015066,2]
[346501049,1735011100314,-576.68,0.00015066,2]
[346501050,1735011100323,-500.0,0.00015066,2]
[346501051,1735011100331,-501.46344245,0.00015066,2]
[346501052,1735011100341,-680.75,0.00015066,2]
[346501053,1735011100349,-500.0,0.00015066,2]
[346501054,1735011100359,-500.0,0.00015066,2]
[346501055,1735011100368,-835.68,0.00015066,2]
[346501056,1735011100377,-500.0,0.00015066,2]
[346501057,1735011100386,-659.12,0.00015066,2]
[346501058,1735011100396,-653.62,0.00015066,2]
[346501059,1735011100405,-534.76,0.00015066,2]
[346501060,1735011100415,-625.74936709,0.00015066,2]
[346501061,1735011100424,-500.0,0.00015066,2]
[346501062,1735011100434,-980.51,0.00015066,2]
[346501063,1735011100443,-1216.74,0.00015066,2]
[346501064,1735011100453,-824.25,0.00015066,2]
[346501065,1735011100462,-766.19,0.00015066,2]
[346501066,1735011100472,-500.0,0.00015066,2]
[346501067,1735011100481,-500.0,0.00015066,2]
[346501068,1735011100491,-500.0,0.00015066,2]
[346501069,1735011100500,-635.05,0.00015066,2]
[346501070,1735011100510,-500.0,0.00015066,2]
[346501071,1735011100519,-500.0,0.00015066,2]
[346501072,1735011100529,-500.0,0.00015066,2]
[346501073,1735011100538,-940.58,0.00015066,2]
[346501074,1735011100548,-669.82,0.00015066,2]
[346501075,1735011100560,-575.68,0.00015066,2]
[346501076,1735011100570,-1285.44,0.00015066,2]
[346501077,1735011100584,-734.43,0.00015066,2]
[346501078,1735011100593,-500.0,0.00015066,2]
[346501079,1735011100603,-1247.11,0.00015066,2]
[346501080,1735011100612,-500.0,0.00015066,2]
[346501081,1735011100622,-1338.65,0.00015066,2]
[346501082,1735011100631,-1230.35,0.00015066,2]
[346501083,1735011100641,-500.0,0.00015066,2]
[346501084,1735011100650,-543.55,0.00015066,2]
[346501085,1735011100659,-500.0,0.00015066,2]
[346501086,1735011100670,-649.45,0.00015066,2]
[346501087,1735011100679,-500.0,0.00015066,2]
[346501088,1735011100688,-500.0,0.00015067,2]
[346501089,1735011100698,-500.0,0.00015067,2]
[346501090,1735011100707,-500.0,0.00015067,2]
[346501091,1735011100717,-500.0,0.00015067,2]
[346501092,1735011100726,-500.0,0.00015067,2]
[346501093,1735011100735,-500.0,0.00015067,2]
[346501094,1735011100745,-500.0,0.00015067,2]
[346501095,1735011100754,-500.0,0.00015067,2]
[346501096,1735011100764,-500.0,0.00015067,2]
[346501097,1735011100773,-500.0,0.00015067,2]
[346501098,1735011100782,-500.0,0.00015067,2]
[346501099,1735011100792,-500.0,0.00015067,2]
[346501100,1735011100804,-500.0,0.00015067,2]
[346501101,1735011100813,-500.0,0.00015067,2]
[346501102,1735011100824,-500.0,0.00015067,2]
[346501103,1735011100833,-500.0,0.00015067,2]
[346501104,1735011100843,-500.0,0.00015067,2]
[346501105,1735011100853,-500.0,0.00015067,2]
[346501106,1735011100863,-500.0,0.00015067,2]
[346501107,1735011100872,-500.0,0.00015067,2]
[346501108,1735011100881,-500.0,0.00015067,2]
[346501109,1735011100890,-500.0,0.00015067,2]
[346501110,1735011100900,-500.0,0.00015067,2]
[346501111,1735011100909,-500.0,0.00015067,2]
[346501112,1735011100919,-500.0,0.00015067,2]
[346501113,1735011100928,-500.0,0.00015067,2]
[346501114,1735011100937,-500.0,0.00015067,2]
[346501115,1735011100947,-500.0,0.00015067,2]
[346501116,1735011100956,-500.0,0.00015067,2]
[346501117,1735011100965,-500.0,0.00015067,2]
[346501118,1735011100974,-500.0,0.00015067,2]
[346501119,1735011100983,-1500.0,0.00015067,2]
[346501120,1735011100992,-500.0,0.00015067,2]
[346501121,1735011101001,-500.0,0.00015067,2]
[346501122,1735011101011,-244.74231026,0.00015067,2]
[346501123,1735011101020,-509.34,0.00015067,2]
[346501124,1735011101030,-500.0,0.00015067,2]
[346501125,1735011101039,-500.0,0.00015067,2]
[346501126,1735011101049,-500.0,0.00015067,2]
[346501127,1735011101063,-500.0,0.00015067,2]
[346501128,1735011101072,-500.0,0.00015067,2]
[346501129,1735011101081,-500.0,0.00015067,2]
[346501130,1735011101091,-594.29,0.00015067,2]
[346501131,1735011101101,-500.0,0.00015067,2]
[346501132,1735011101110,-670.25,0.00015067,2]
[346501133,1735011101120,-553.58,0.00015067,2]
[346501134,1735011101129,-1203.72,0.00015067,2]
[346501135,1735011101138,-500.0,0.00015067,2]
[346501136,1735011101148,-500.0,0.00015067,2]
[346501137,1735011101157,-500.0,0.00015067,2]
[346501138,1735011101166,-500.0,0.00015067,2]
[346501139,1735011101176,-500.0,0.00015067,2]
[346501140,1735011101185,-627.9,0.00015067,2]
[346501141,1735011101195,-500.0,0.00015067,2]
[346501142,1735011101204,-500.0,0.00015067,2]
[346501143,1735011101216,-500.0,0.00015067,2]
[346501144,1735011101226,-500.0,0.00015067,2]
[346501145,1735011101235,-500.0,0.00015067,2]
[346501146,1735011101244,-150.0,0.00015068,2]
[346501147,1735011101253,-2048.58,0.00015068,2]
[346501148,1735011101263,-1779.8,0.00015068,2]
[346501149,1735011101272,-1311.88,0.00015068,2]
[346501150,1735011101281,-3042.34,0.00015068,2]
[346501151,1735011101290,-500.0,0.00015068,2]
[346501152,1735011101300,-4145.26,0.00015068,2]
[346501153,1735011101314,-2510.92,0.00015068,2]
[346501154,1735011101323,-2165.74,0.00015068,2]
[346501155,1735011101334,-4218.72,0.00015068,2]
[346501156,1735011101343,-2191.99,0.00015068,2]
[346501157,1735011101352,-2002.38,0.00015068,2]
[346501158,1735011101362,-500.0,0.00015068,2]
[346501159,1735011101371,-500.0,0.00015068,2]
[346501160,1735011101381,-683.71,0.00015068,2]
[346501161,1735011101391,-500.0,0.00015068,2]
[346501162,1735011101400,-500.0,0.00015068,2]
[346501163,1735011101409,-500.0,0.00015068,2]
[346501164,1735011101419,-18977.0,0.00015068,2]
[346501165,1735011101428,-760.03,0.00015068,2]
[346501166,1735011101437,-237.14586416,0.00015068,2]
[346501167,1735011101447,-1641.11,0.00015068,2]
[346501168,1735011101456,-500.0,0.00015068,2]
[346501169,1735011101465,-500.0,0.00015068,2]
[346501170,1735011101475,-500.0,0.00015068,2]
[346501171,1735011101484,-1764.49,0.00015068,2]
[346501172,1735011101493,-150.0,0.00015071,2]
[346501173,1735011101503,-150.0,0.00015072,2]
[346501174,1735011101512,-150.0,0.00015077,2]
[346501175,1735011101523,-150.0,0.00015083,2]
[346501176,1735011101532,-150.0,0.00015085,2]
[346501177,1735011101541,-150.0,0.00015087,2]
[346501178,1735011101551,-3000.0,0.0001509,2]
[346501179,1735011101562,-150.0,0.00015093,2]
[346501180,1735011101572,-6631.00342435,0.00015102,2]
[346501181,1735011101584,-150.0,0.00015103,2]
[346501182,1735011101594,-150.0,0.00015109,2]
[346501183,1735011101603,-1500.0,0.00015109,2]
[346501184,1735011101612,-3000.0,0.0001511,2]
[346501185,1735011101623,-3000.0,0.0001511,2]
[346501186,1735011101632,-150.0,0.00015114,2]
[346501187,1735011101642,-150.0,0.00015114,2]
[346501188,1735011101654,-150.0,0.00015114,2]
[346501189,1735011101663,-150.0,0.00015121,2]
[346501190,1735011101672,-150.0,0.00015124,2]
[346501191,1735011101681,-150.0,0.00015129,2]
[346501192,1735011101691,-150.0,0.0001513,2]
[346501193,1735011101699,-150.0,0.00015131,2]
[346501194,1735011101709,-150.0,0.00015134,2]
[346501195,1735011101718,-150.0,0.00015141,2]
[346501196,1735011101727,-150.0,0.00015141,2]
[346501197,1735011101737,-150.0,0.00015142,2]
[346501198,1735011101746,-3000.0,0.0001515,2]
[346501199,1735011101755,-150.0,0.00015151,2]
[346501200,1735011101764,-150.0,0.00015153,2]
[346501201,1735011101773,-150.0,0.00015157,2]
[346501202,1735011101783,-150.0,0.00015159,2]
[346501203,1735011101792,-150.0,0.0001516,2]
[346501204,1735011101801,-150.0,0.00015163,2]
[346501205,1735011101812,-150.0,0.00015165,2]
[346501206,1735011101821,-150.0,0.00015167,2]
[346501207,1735011101830,-150.0,0.00015168,2]
[346501208,1735011101840,-150.0,0.00015175,2]
[346501209,1735011101849,-150.0,0.00015175,2]
[346501210,1735011101859,-150.0,0.00015177,2]
[346501211,1735011101868,-1082.3105061,0.00015178,2]
[346501212,1735011101878,-150.0,0.0001518,2]
[346501213,1735011101887,-150.0,0.00015181,2]
[346501214,1735011101896,-150.0,0.00015185,2]
[346501215,1735011101905,-32810.0,0.00015186,2]
[346501216,1735011101916,-150.0,0.00015188,2]
[346501217,1735011101925,-150.0,0.00015188,2]
[346501218,1735011101935,-150.0,0.00015189,2]
[346501219,1735011101944,-150.0,0.0001519,2]
[346501220,1735011101954,-150.0,0.00015192,2]
[346501221,1735011101963,-150.0,0.00015195,2]
[346501222,1735011101972,-150.0,0.000152,2]
[346501223,1735011101981,-10083.715231,0.000152,2]
[346501224,1735011101990,-886.0,0.000152,2]
[346501225,1735011101999,-230.0,0.000152,2]
[346501226,1735011102008,-150.0,0.00015203,2]
[346501227,1735011102017,-150.0,0.00015203,2]
[346501228,1735011102027,-150.0,0.00015204,2]
[346501229,1735011102036,-150.0,0.00015207,2]
[346501230,1735011102045,-150.0,0.0001521,2]
[346501231,1735011102055,-150.0,0.00015211,2]
[346501232,1735011102065,-150.0,0.00015213,2]
[346501233,1735011102074,-150.0,0.00015215,2]
[346501234,1735011102250,-150.0,0.00015219,2]
[346501235,1735011102261,-150.0,0.00015219,2]
[346501236,1735011102270,-150.0,0.00015221,2]
[346501237,1735011102280,-1500.0,0.00015222,2]
[346501238,1735011102290,-150.0,0.00015224,2]
[346501239,1735011102300,-150.0,0.00015225,2]
[346501240,1735011102311,-150.0,0.00015225,2]
[346501241,1735011102321,-150.0,0.00015225,2]
[346501242,1735011102331,-150.0,0.00015232,2]
[346501243,1735011102340,-150.0,0.00015234,2]
[346501244,1735011102350,-150.0,0.00015235,2]
[346501245,1735011102359,-150.0,0.00015236,2]
[346501246,1735011102369,-1171.6109,0.00015238,2]
[346501247,1735011102378,-5000.0,0.00015238,2]
[346501248,1735011102388,-150.0,0.00015239,2]
[346501249,1735011102397,-3000.0,0.00015241,2]
[346501250,1735011102406,-3000.0,0.00015241,2]
[346501251,1735011102416,-200.0,0.00015241,2]
[346501252,1735011102425,-150.0,0.00015246,2]
[346501253,1735011102434,-150.0,0.00015248,2]
[346501254,1735011102444,-150.0,0.00015251,2]
[346501255,1735011102453,-150.0,0.00015252,2]
[346501256,1735011102462,-150.0,0.00015252,2]
[346501257,1735011102472,-150.0,0.00015261,2]
[346501258,1735011102481,-150.0,0.00015263,2]
[346501259,1735011102491,-150.0,0.00015265,2]
[346501260,1735011102500,-150.0,0.00015266,2]
[346501261,1735011102509,-150.0,0.00015267,2]
[346501262,1735011102519,-150.0,0.00015268,2]
[346501263,1735011102529,-150.0,0.00015268,2]
[346501264,1735011102538,-150.0,0.00015269,2]
[346501265,1735011102547,-3000.0,0.0001527,2]
[346501266,1735011102559,-150.0,0.00015272,2]
[346501267,1735011102569,-150.0,0.00015273,2]
[346501268,1735011102582,-1500.0,0.00015276,2]
[346501269,1735011102592,-1500.0,0.00015277,2]
[346501270,1735011102601,-150.0,0.00015278,2]
[346501271,1735011102610,-150.0,0.00015281,2]
[346501272,1735011102621,-150.0,0.00015281,2]
[346501273,1735011102631,-150.0,0.00015283,2]
[346501274,1735011102640,-150.0,0.00015287,2]
[346501275,1735011102651,-150.0,0.00015288,2]
[346501276,1735011102660,-150.0,0.0001529,2]
[346501277,1735011102670,-150.0,0.00015294,2]
[346501278,1735011102679,-150.0,0.00015294,2]
[346501279,1735011102690,-150.0,0.00015297,2]
[346501280,1735011102699,-150.0,0.000153,2]
[346501281,1735011102709,-150.0,0.00015307,2]
[346501282,1735011102718,-384.33,0.0001531,2]
[346501283,1735011102727,-999.99,0.0001531,2]
[346501284,1735011102737,-3586.61,0.0001531,2]
[346501285,1735011102746,-8845.48,0.0001531,2]
[346501286,1735011102756,-150.99,0.0001531,2]
[346501287,1735011102765,-299.99,0.0001531,2]
[346501288,1735011102774,-1119.52,0.0001531,2]
[346501289,1735011102784,-150.99,0.0001531,2]
[346501290,1735011102793,-150.0,0.00015311,2]
[346501291,1735011102803,-1603.0,0.00015313,2]
[346501292,1735011102813,-150.0,0.00015313,2]
[346501293,1735011102823,-150.0,0.00015314,2]
[346501294,1735011102833,-150.0,0.00015324,2]
[346501295,1735011102843,-150.0,0.00015325,2]
[346501296,1735011102852,-150.0,0.00015327,2]
[346501297,1735011102861,-150.0,0.0001533,2]
[346501298,1735011102871,-150.0,0.00015331,2]
[346501299,1735011102880,-150.0,0.00015333,2]
[346501300,1735011102889,-1852.82,0.00015336,2]
[346501301,1735011102899,-500.0,0.00015336,2]
[346501302,1735011102908,-500.0,0.00015336,2]
[346501303,1735011102918,-2606.93,0.00015336,2]
[346501304,1735011102927,-2999.55,0.00015336,2]
[346501305,1735011102938,-1157.43,0.00015336,2]
[346501306,1735011102948,-606.11,0.00015336,2]
[346501307,1735011102957,-6426.45,0.00015336,2]
[346501308,1735011102966,-1172.56,0.00015336,2]
[346501309,1735011102976,-4243.49,0.00015336,2]
[346501310,1735011102985,-1763.65,0.00015336,2]
[346501311,1735011102995,-155.825675,0.00015336,2]
[346501312,1735011103004,-1114.010296,0.00015336,2]
[346501313,1735011103013,-154.430375,0.00015336,2]
[346501314,1735011103023,-1609.76,0.00015336,2]
[346501315,1735011103033,-1255.913597,0.00015336,2]
[346501316,1735011103042,-3445.2,0.00015336,2]
[346501317,1735011103052,-2865.43,0.00015336,2]
[346501318,1735011103062,-9494.21,0.00015336,2]
[346501319,1735011103072,-875.1,0.00015336,2]
[346501320,1735011103082,-9217.19,0.00015336,2]
[346501321,1735011103091,-2293.91,0.00015336,2]
[346501322,1735011103100,-1133.56,0.00015336,2]
[346501323,1735011103110,-500.0,0.00015336,2]
[346501324,1735011103119,-1695.02,0.00015336,2]
[346501325,1735011103129,-1707.6,0.00015336,2]
[346501326,1735011103138,-2242.13,0.00015336,2]
[346501327,1735011103147,-2349.54,0.00015336,2]
[346501328,1735011103157,-1817.06,0.00015336,2]
[346501329,1735011103165,-3224.69,0.00015336,2]
[346501330,1735011103175,-1391.02,0.00015336,2]
[346501331,1735011103184,-2776.88,0.00015336,2]
[346501332,1735011103194,-3101.23,0.00015336,2]
[346501333,1735011103204,-4039.9,0.00015336,2]
[346501334,1735011103213,-2093.55,0.00015336,2]
[346501335,1735011103222,-7546.19,0.00015336,2]
[346501336,1735011103231,-500.0,0.00015336,2]
[346501337,1735011103241,-6150.66,0.00015336,2]